bitfinex-derivatives/quotes_SOLF0:USTF0_20241103
["timestamp","ask_amount","ask_price","bid_price","bid_amount"]
[1730630262806,5.9488,164.06,164.03,3.0492]
[1730630264817,2.9,164.06,164.04,3.049]
[1730630265024,6.0948,164.13,164.02,10.25122178]
[1730630265025,2.9,164.08,164.02,10.25122178]
[1730630265223,2.9,164.09,164.03,2.6347]
[1730630265426,3.0485,164.08,164.05,3.0488]
[1730630266715,3.0487,164.06,164.03,4.3688]
[1730630267822,3.0487,164.06,164.04,6.55745137]
[1730630268223,3.0485,164.07,164.05,3.0489]
[1730630268412,2.9,164.09,164.05,9.60635137]
[1730630268811,6.55745137,164.11,164.05,6.55745137]
[1730630269011,2.9,164.1,164.07,3.0485]
[1730630269525,3.0483,164.09,164.06,3.0486]
[1730630270421,5.9481,164.1,164.07,3.0485]
[1730630270626,2.9,164.1,164.07,3.0485]
[1730630272222,3.0482,164.09,164.07,3.0485]
[1730630274416,6.55745137,164.09,164.03,7.87705137]
[1730630274619,3.0486,164.07,164.04,3.0489]
[1730630275932,3.0486,164.07,164.05,3.0489]
[1730630276828,3.0486,164.07,164.04,3.049]
[1730630277025,2.88,164.11,164.07,6.55745137]
[1730630278443,3.048,164.1,164.07,9.60585137]
[1730630279531,3.048,164.1,164.07,6.55745137]
[1730630281234,3.048,164.1,164.07,9.60595137]
[1730630282928,6.55745137,164.1,164.04,6.55745137]
[1730630283932,3.0489,164.05,164.04,6.55745137]
[1730630285433,2.88,164.07,164.05,3.0488]
[1730630285624,2.88,164.07,164.04,6.55745137]
[1730630286527,65.79029045,164.15,164.05,6.55745137]
[1730630286528,2.88,164.1,164.05,6.55745137]
[1730630286724,2.88,164.1,164.07,6.55745137]
[1730630287523,6.55745137,164.12,164.08,9.60565137]
[1730630287524,2.88,164.12,164.08,9.60565137]
[1730630287720,59.69599045,164.15,164.1,6.55745137]
[1730630287921,2.88,164.14,164.1,6.55745137]
[1730630288132,2.88,164.14,164.1,9.60535137]
[1730630288133,5.9273,164.14,164.1,9.60535137]
[1730630288338,2.88,164.14,164.1,9.60535137]
[1730630289227,3.0474,164.13,164.1,9.60535137]
[1730630289536,3.0474,164.13,164.03,4.1996]
[1730630289537,6.55745137,164.13,164.08,3.0482]
[1730630289738,6.55745137,164.13,164.07,6.55745137]
[1730630289739,3.0479,164.11,164.07,6.55745137]
[1730630290337,3.0479,164.11,164.07,9.60585137]
[1730630290938,3.0479,164.11,164.07,6.55745137]
[1730630292233,3.0479,164.11,164.08,3.0483]
[1730630292639,3.0479,164.11,164.08,9.60575137]
[1730630294839,3.0479,164.11,164.08,3.0483]
[1730630299543,6.55745137,164.12,164.07,6.55745137]
[1730630299747,6.55745137,164.1,164.05,6.55745137]
[1730630299945,9.41745137,164.1,164.05,6.55745137]
[1730630300638,9.41745137,164.1,164.05,9.60615137]
[1730630300639,3.0483,164.08,164.05,9.60615137]
[1730630300953,9.41745137,164.1,164.05,6.55745137]
[1730630301144,3.0485,164.08,164.04,9.60635137]
[1730630302039,3.0485,164.08,164.05,3.0489]
[1730630305643,3.0482,164.09,164.07,6.55745137]
[1730630307342,3.0479,164.11,164.09,3.0481]
[1730630307548,2.86,164.13,164.1,6.55745137]
[1730630307750,62.55599045,164.15,164.12,6.55745137]
[1730630308141,62.55599045,164.15,164.1,6.55745137]
[1730630308459,69.11344182,164.15,164.1,6.55745137]
[1730630309040,3.0475,164.13,164.1,9.60535137]
[1730630313350,3.0475,164.13,164.05,4.4031428]
[1730630313351,6.55745137,164.19,164.12,6.55745137]
[1730630313552,6.55745137,164.19,164.15,6.55745137]
[1730630313553,2.86,164.18,164.15,6.55745137]
[1730630313758,3.0467,164.17,164.15,6.55745137]
[1730630315551,3.0468,164.16,164.14,6.55745137]
[1730630318040,2.86,164.18,164.15,6.55745137]
[1730630318246,5.9063,164.19,164.16,9.60415137]
[1730630318655,3.0463,164.19,164.16,9.60415137]
[1730630320862,2.86,164.2,164.18,6.55745137]
[1730630321759,3.0463,164.19,164.18,6.55745137]
[1730630321955,2.86,164.2,164.18,6.55745137]
[1730630322356,5.9062,164.2,164.18,6.55745137]
[1730630323759,2.86,164.2,164.16,6.55745137]
[1730630323961,3.0466,164.18,164.16,6.55745137]
[1730630324972,3.0463,164.19,164.16,9.60425137]
[1730630325354,2.86,164.2,164.16,6.55745137]
[1730630325554,2.86,164.2,164.15,6.55745137]
[1730630325764,9.41745137,164.2,164.15,6.55745137]
[1730630326264,3.0468,164.16,164.15,6.55745137]
[1730630327163,3.0468,164.16,164.12,6.55745137]
[1730630327164,3.0474,164.14,164.12,6.55745137]
[1730630328255,9.41745137,164.16,164.12,6.55745137]
[1730630328451,3.0474,164.13,164.12,6.55745137]
[1730630328972,9.41745137,164.16,164.1,6.55745137]
[1730630330362,3.0478,164.11,164.1,6.55745137]
[1730630330763,6.55745137,164.15,164.06,2.6434]
[1730630330764,2.86,164.12,164.08,6.55745137]
[1730630330969,6.55745137,164.13,164.08,6.55745137]
[1730630330970,2.86,164.11,164.08,6.55745137]
[1730630331160,2.86,164.11,164.07,6.55745137]
[1730630331558,3.0482,164.09,164.07,6.55745137]
[1730630332165,3.0483,164.08,164.07,6.55745137]
[1730630332761,3.0482,164.09,164.07,6.55745137]
[1730630334363,3.0483,164.08,164.06,1.3742]
[1730630334566,3.0483,164.08,164.05,6.55745137]
[1730630334859,2.86,164.11,164.05,6.55745137]
[1730630335065,3.0485,164.07,164.05,6.55745137]
[1730630336160,2.88,164.07,164.02,6.55745137]
[1730630336667,3.0491,164.04,164.02,6.55745137]
[1730630337262,3.0489,164.05,164.02,9.60685137]
[1730630337859,6.55745137,164.1,164.04,6.55745137]
[1730630338060,3.0485,164.08,164.06,6.55745137]
[1730630338265,2.88,164.09,164.04,6.55745137]
[1730630338662,3.0486,164.07,164.03,9.60665137]
[1730630339476,3.0486,164.07,164.04,3.049]
[1730630339672,3.0486,164.07,164.03,6.55745137]
[1730630339979,3.0486,164.07,164.04,3.049]
[1730630340271,3.0491,164.04,164.01,6.55745137]
[1730630340573,6.55745137,164.08,164.01,6.55745137]
[1730630340765,6.55745137,164.08,164.03,6.55745137]
[1730630341073,3.0488,164.06,164.03,6.55745137]
[1730630341869,9.43745137,164.09,164.03,6.55745137]
[1730630342263,6.55745137,164.08,164.02,6.55745137]
[1730630342476,3.0489,164.05,164.02,6.55745137]
[1730630342873,2.88,164.05,164.02,6.55745137]
[1730630343173,3.0491,164.04,164.02,6.55745137]
[1730630343971,3.0491,164.04,164.01,3.0495]
[1730630343972,3.0496,164.02,164.0,6.55745137]
[1730630344768,3.0492,164.04,164.01,9.60695137]
[1730630345271,3.0493,164.03,164.01,6.55745137]
[1730630345580,3.0493,164.03,164.0,9.60715137]
[1730630345781,6.55745137,164.04,163.99,6.55745137]
[1730630346874,3.0496,164.02,163.99,9.60735137]
[1730630347474,6.55745137,164.04,163.99,6.55745137]
[1730630348180,3.0495,164.02,163.99,9.60725137]
[1730630348982,3.0495,164.02,164.0,3.0498]
[1730630349677,3.0495,164.02,163.99,6.55745137]
[1730630351277,3.0495,164.02,164.0,3.0498]
[1730630352072,3.0495,164.02,163.99,9.60735137]
[1730630354587,2.88,164.03,164.02,3.0494]
[1730630354789,2.88,164.03,164.01,6.55745137]
[1730630355174,5.9294,164.03,164.0,6.55745137]
[1730630355587,2.88,164.03,164.0,6.55745137]
[1730630355775,3.0494,164.02,164.0,6.55745137]
[1730630358985,2.88,164.03,164.0,6.55745137]
[1730630359187,2.88,164.03,164.01,6.55745137]
[1730630359594,2.88,164.03,164.02,3.0494]
[1730630362991,2.88,164.03,163.99,6.55745137]
[1730630363180,3.0494,164.02,164.0,3.0497]
[1730630367593,3.0494,164.02,163.98,1.2776]
[1730630367594,2.88,164.03,164.02,3.0494]
[1730630368003,3.0486,164.07,164.04,3.0489]
[1730630368300,2.92,164.06,164.02,6.55745137]
[1730630368603,5.9687,164.06,164.03,3.0491]
[1730630368901,2.92,164.06,164.02,6.55745137]
[1730630369495,2.92,164.06,164.05,3.0489]
[1730630370697,6.55745137,164.11,164.05,6.55745137]
[1730630370899,2.92,164.1,164.05,6.55745137]
[1730630371198,2.92,164.1,164.07,3.0484]
[1730630371986,2.92,164.1,164.09,3.0481]
[1730630372187,18.29,164.17,164.09,3.0481]
[1730630372188,2.92,164.12,164.09,6.55745137]
[1730630372586,5.9677,164.12,164.09,6.55745137]
[1730630373303,3.0479,164.11,164.09,6.55745137]
[1730630373903,5.9676,164.12,164.09,9.60545137]
[1730630374304,2.92,164.12,164.09,9.60545137]
[1730630375304,3.0479,164.1,164.07,6.55745137]
[1730630377897,2.92,164.12,164.07,6.55745137]
[1730630378606,6.55745137,164.09,164.03,6.55745137]
[1730630378798,6.55745137,164.09,163.86,43.88]
[1730630378799,6.55745137,164.04,163.98,6.55745137]
[1730630379097,9.47745137,164.04,163.98,6.55745137]
[1730630379599,3.0495,164.02,163.98,9.60745137]
[1730630383612,9.47745137,164.04,163.98,9.60745137]
[1730630384509,3.0496,164.01,163.98,9.60745137]
[1730630385505,3.0495,164.02,163.99,3.05]
[1730630389211,9.47745137,164.04,163.98,6.55745137]
[1730630389409,3.0496,164.01,163.98,9.60755137]
[1730630390813,3.0496,164.01,163.98,3.0501]
[1730630395611,9.47745137,164.04,163.99,6.55745137]
[1730630396400,9.47745137,164.04,163.99,9.60725137]
[1730630396401,3.0494,164.02,163.99,9.60725137]
[1730630397719,3.0496,164.01,163.99,9.60725137]
[1730630400604,3.0496,164.01,163.95,3.9118]
[1730630400605,3.0496,164.01,163.98,3.0501]
[1730630400806,3.0496,164.01,163.97,6.55745137]
[1730630402314,3.0496,164.01,163.99,3.05]
[1730630403320,3.0502,163.99,163.96,6.55745137]
[1730630404121,3.0502,163.99,163.96,9.60785137]
[1730630404521,3.0501,163.99,163.95,12.17875137]
[1730630404729,9.45745137,164.0,163.95,12.17875137]
[1730630405727,3.0504,163.97,163.95,12.17875137]
[1730630407110,9.45745137,164.0,163.93,6.55745137]
[1730630407315,6.55745137,163.98,163.93,6.55745137]
[1730630409226,3.0506,163.96,163.93,9.60855137]
[1730630409625,9.45745137,164.0,163.93,6.55745137]
[1730630409815,2.9,164.0,163.96,6.55745137]
[1730630410628,3.0501,163.99,163.96,9.60795137]
[1730630419027,5.9499,164.0,163.97,3.0502]
[1730630420339,3.0501,163.99,163.95,9.60805137]
[1730630420734,3.0502,163.98,163.95,9.60805137]
[1730630422842,3.0502,163.98,163.96,3.0505]
[1730630423038,2.9,164.0,163.96,6.55745137]
[1730630423225,5.9497,164.01,163.96,6.55745137]
[1730630423632,5.9497,164.01,163.98,3.05]
[1730630423938,2.9,164.01,163.98,3.05]
[1730630424241,3.0498,164.0,163.98,3.05]
[1730630424436,6.55745137,164.03,163.98,6.55745137]
[1730630424643,6.55745137,164.06,163.99,6.55745137]
[1730630424936,2.86,164.05,163.99,6.55745137]
[1730630425535,3.0491,164.04,164.01,3.0495]
[1730630425938,3.0491,164.04,164.01,9.60695137]
[1730630426342,3.0485,164.07,164.04,3.0491]
[1730630426647,3.0485,164.07,164.03,6.55745137]
[1730630426944,3.0487,164.06,164.03,9.60665137]
[1730630427939,6.55745137,164.09,164.03,6.55745137]
[1730630428241,6.55745137,164.09,163.98,1.3145]
[1730630428242,12.46565137,164.09,164.05,3.0488]
[1730630428735,2.86,164.09,164.06,6.55745137]
[1730630429145,2.86,164.09,164.04,6.55745137]
[1730630429342,5.9083,164.09,164.05,3.0488]
[1730630429830,6.55745137,164.13,164.01,2.5457]
[1730630430025,6.55745137,164.13,164.08,6.55745137]
[1730630430026,3.0479,164.11,164.08,6.55745137]
[1730630432742,2.86,164.12,164.09,3.0481]
[1730630433041,2.86,164.12,164.1,6.55745137]
[1730630434439,3.0475,164.13,164.1,6.55745137]
[1730630434639,3.0475,164.13,164.1,9.60535137]
[1730630435448,3.0475,164.13,164.1,6.55745137]
[1730630435648,3.0478,164.11,164.08,6.55745137]
[1730630435850,3.0478,164.11,164.07,13.55615137]
[1730630437143,9.41745137,164.13,164.1,6.55745137]
[1730630437144,3.0476,164.12,164.1,6.55745137]
[1730630444968,5.9075,164.13,164.11,6.55745137]
[1730630448966,93.32377842,164.16,164.11,6.55745137]
[1730630449160,2.86,164.15,164.12,6.55745137]
[1730630449470,93.32377842,164.16,164.14,6.55745137]
[1730630450262,2.86,164.2,164.15,6.55745137]
[1730630450770,2.86,164.2,164.17,6.55745137]
[1730630450976,5.9062,164.2,164.17,9.60405137]
[1730630451272,2.86,164.2,164.18,6.55745137]
[1730630452068,6.55745137,164.24,164.18,6.55745137]
[1730630452379,3.046,164.21,164.18,6.55745137]
[1730630452972,2.86,164.23,164.2,6.55745137]
[1730630453268,3.0454,164.24,164.2,6.55745137]
[1730630453269,2.86,164.24,164.2,6.55745137]
[1730630453458,3.0456,164.23,164.22,6.55745137]
[1730630454874,3.0456,164.23,164.2,6.55745137]
[1730630455074,6.55745137,164.26,164.2,6.55745137]
[1730630455273,3.0455,164.24,164.2,9.60335137]
[1730630457471,3.0455,164.24,164.22,6.55745137]
[1730630457674,5.9052,164.25,164.22,6.55745137]
[1730630459278,2.86,164.25,164.22,6.55745137]
[1730630459479,3.0457,164.22,164.21,6.55745137]
[1730630460385,2.86,164.25,164.21,6.55745137]
[1730630460587,2.86,164.25,164.23,6.55745137]
[1730630460987,5.9052,164.25,164.23,6.55745137]
[1730630461376,9.41745137,164.26,164.2,6.55745137]
[1730630461577,3.0457,164.23,164.2,6.55745137]
[1730630462290,3.0459,164.21,164.19,6.55745137]
[1730630462890,3.0463,164.19,164.17,6.55745137]
[1730630463091,6.55745137,164.23,164.17,6.55745137]
[1730630463396,6.55745137,164.22,164.17,6.55745137]
[1730630463693,6.55745137,164.24,164.17,6.55745137]
[1730630464092,3.0463,164.2,164.17,6.55745137]
[1730630464791,3.0463,164.2,164.19,6.55745137]
[1730630470304,6.55745137,164.24,164.19,6.55745137]
[1730630470500,3.0459,164.21,164.19,6.55745137]
[1730630472391,3.0452,164.25,164.22,3.0457]
[1730630472594,2.86,164.25,164.24,6.55745137]
[1730630473694,5.9052,164.25,164.24,6.55745137]
[1730630475198,3.0452,164.25,164.24,6.55745137]
[1730630480811,3.0453,164.24,164.23,6.55745137]
[1730630483902,2.86,164.27,164.21,6.55745137]
[1730630483903,9.41745137,164.27,164.21,6.55745137]
[1730630484098,6.55745137,164.26,164.15,37.97592031]
[1730630484409,6.55745137,164.24,164.18,6.55745137]
[1730630484605,3.0461,164.2,164.18,6.55745137]
[1730630485704,6.55745137,164.22,164.16,6.55745137]
[1730630485907,6.55745137,164.18,164.12,6.55745137]
[1730630486109,1.324,164.23,164.05,6.55745137]
[1730630486110,6.55745137,164.13,164.05,6.55745137]
[1730630486413,2.84,164.12,164.05,6.55745137]
[1730630486999,3.0481,164.1,164.07,6.55745137]
[1730630487406,3.0481,164.1,164.09,6.55745137]
[1730630487811,3.0481,164.1,164.07,6.55745137]
[1730630491108,2.84,164.12,164.09,6.55745137]
[1730630491811,3.0478,164.11,164.09,6.55745137]
[1730630492020,2.84,164.12,164.1,6.55745137]
[1730630492213,2.84,164.15,164.1,6.55745137]
[1730630493011,3.0475,164.13,164.1,6.55745137]
[1730630495817,2.84,164.15,164.12,6.55745137]
[1730630496529,3.0474,164.14,164.12,6.55745137]
[1730630497018,3.0474,164.13,164.12,6.55745137]
[1730630510933,3.0473,164.14,164.12,6.55745137]
[1730630511734,5.887,164.15,164.13,6.55745137]
[1730630512131,3.047,164.15,164.13,6.55745137]
[1730630514319,3.047,164.15,164.12,9.60495137]
[1730630520724,3.047,164.15,164.12,6.55745137]
[1730630523737,3.0472,164.14,164.12,6.55745137]
[1730630525739,5.8868,164.16,164.13,9.60475137]
[1730630525937,6.55745137,164.21,164.15,6.55745137]
[1730630526132,2.86,164.2,164.15,6.55745137]
[1730630526329,3.0468,164.17,164.15,6.55745137]
[1730630527338,3.0468,164.17,164.14,6.55745137]
[1730630527741,3.047,164.15,164.14,6.55745137]
[1730630528642,2.86,164.17,164.12,6.55745137]
[1730630528944,2.86,164.17,164.07,3.9397]
[1730630528945,3.0474,164.13,164.11,6.55745137]
[1730630529442,6.55745137,164.16,164.09,6.55745137]
[1730630529642,6.55745137,164.14,164.09,6.55745137]
[1730630529850,2.86,164.13,164.09,6.55745137]
[1730630530240,3.0476,164.12,164.09,6.55745137]
[1730630530537,3.0476,164.12,164.08,9.60575137]
[1730630532146,3.0478,164.11,164.08,9.60575137]
[1730630532940,3.0481,164.09,164.07,1.2716]
[1730630533146,6.55745137,164.11,164.06,6.55745137]
[1730630533343,6.55745137,164.11,164.05,6.55745137]
[1730630533744,3.0484,164.08,164.05,9.60635137]
[1730630533944,3.0484,164.08,164.06,6.55745137]
[1730630534650,2.86,164.09,164.06,6.55745137]
[1730630534948,2.86,164.09,164.08,6.55745137]
[1730630535152,2.86,164.13,164.08,6.55745137]
[1730630535446,2.86,164.13,164.1,6.55745137]
[1730630535647,2.86,164.15,164.12,6.55745137]
[1730630535846,2.86,164.18,164.14,6.55745137]
[1730630536054,2.86,164.18,164.15,6.55745137]
[1730630536650,3.0468,164.17,164.15,6.55745137]
[1730630537546,2.86,164.18,164.15,6.55745137]
[1730630537733,2.86,164.18,164.17,6.55745137]
[1730630538340,3.0459,164.22,164.17,9.60395137]
[1730630538539,3.0459,164.22,164.18,6.55745137]
[1730630538540,2.86,164.21,164.18,6.55745137]
[1730630539041,3.0459,164.22,164.18,9.60385137]
[1730630540242,2.86,164.23,164.18,6.55745137]
[1730630540444,3.0461,164.2,164.17,6.55745137]
[1730630543452,2.86,164.23,164.18,6.55745137]
[1730630544864,3.0461,164.21,164.18,6.55745137]
[1730630545255,3.0461,164.21,164.18,9.60385137]
[1730630545651,2.86,164.22,164.18,6.55745137]
[1730630545846,2.86,164.22,164.1,34.78368463]
[1730630545847,6.55745137,164.2,164.15,6.55745137]
[1730630546447,6.55745137,164.2,164.14,6.55745137]
[1730630546657,3.0468,164.17,164.14,6.55745137]
[1730630547048,3.0468,164.17,164.14,9.60455137]
[1730630548761,2.88,164.18,164.14,9.60455137]
[1730630548972,5.9266,164.18,164.14,9.60455137]
[1730630550554,2.88,164.18,164.14,6.55745137]
[1730630550759,3.047,164.16,164.14,6.55745137]
[1730630554072,6.55745137,164.17,164.12,6.55745137]
[1730630554274,6.55745137,164.17,164.1,41.39998207]
[1730630555070,3.0473,164.14,164.1,41.39998207]
[1730630558378,6.55745137,164.16,164.1,41.39998207]
[1730630558673,2.88,164.14,164.1,38.35218207]
[1730630558981,3.0478,164.11,164.09,9.60555137]
[1730630559768,9.43745137,164.14,164.09,9.60555137]
[1730630559973,3.0476,164.12,164.09,9.60555137]
[1730630563376,3.0473,164.14,164.11,3.0476]
[1730630563680,5.9273,164.14,164.12,6.55745137]
[1730630567183,2.88,164.14,164.13,3.0474]
[1730630567381,2.88,164.17,164.13,6.55745137]
[1730630567690,2.88,164.17,164.07,6.8291]
[1730630567691,2.88,164.18,164.16,6.55745137]
[1730630568189,5.9266,164.18,164.15,6.55745137]
[1730630569393,5.9266,164.18,164.15,9.60445137]
[1730630570586,2.88,164.18,164.15,6.55745137]
[1730630570891,2.88,164.18,164.07,6.8291]
[1730630570892,3.0468,164.16,164.13,9.60475137]
[1730630571096,2.88,164.18,164.13,9.60475137]
[1730630571590,2.88,164.18,164.13,6.55745137]
[1730630571798,3.0467,164.17,164.14,3.0472]
[1730630571986,2.88,164.18,164.16,6.55745137]
[1730630572186,2.88,164.2,164.17,9.60405137]
[1730630573598,2.88,164.2,164.14,6.55745137]
[1730630573785,3.0465,164.19,164.16,3.0468]
[1730630574189,5.9265,164.19,164.15,3.047]
[1730630577201,3.0467,164.17,164.14,6.55745137]
[1730630577790,3.0466,164.18,164.15,3.047]
[1730630578193,3.0466,164.18,164.16,6.55745137]
[1730630578693,2.88,164.19,164.17,6.55745137]
[1730630579004,2.88,164.19,164.18,3.0465]
[1730630579594,3.046,164.21,164.18,9.60395137]
[1730630579900,2.82,164.22,164.18,9.60395137]
[1730630581301,3.0459,164.21,164.18,9.60395137]
[1730630588210,2.82,164.22,164.18,6.55745137]
[1730630588506,2.82,164.24,164.21,6.55745137]
[1730630589397,3.0456,164.23,164.21,6.55745137]
[1730630590601,3.0456,164.23,164.2,9.60345137]
[1730630590918,2.82,164.25,164.2,6.55745137]
[1730630591102,2.82,164.26,164.23,6.55745137]
[1730630591708,5.8651,164.26,164.23,9.60285137]
[1730630591912,2.82,164.26,164.23,6.55745137]
[1730630593409,3.0452,164.25,164.23,6.55745137]
[1730630595009,3.0452,164.25,164.24,6.55745137]
[1730630595517,5.865,164.26,164.24,6.55745137]
[1730630596401,2.82,164.26,164.24,6.55745137]
[1730630597108,5.865,164.26,164.24,6.55745137]
[1730630597311,2.82,164.29,164.24,6.55745137]
[1730630597506,2.82,164.29,164.26,6.55745137]
[1730630598215,3.0448,164.27,164.26,6.55745137]
[1730630598711,2.82,164.29,164.26,6.55745137]
[1730630598914,2.82,164.29,164.26,9.60235137]
[1730630599323,5.8645,164.29,164.26,9.60235137]
[1730630600811,3.0445,164.29,164.26,9.60235137]
[1730630602016,3.0445,164.29,164.26,6.55745137]
[1730630603308,3.0447,164.28,164.26,6.55745137]
[1730630603822,3.0441,164.31,164.28,3.0445]
[1730630604005,17.76710529,164.35,164.29,6.55745137]
[1730630604210,3.8418998,164.34,164.29,6.55745137]
[1730630604411,2.82,164.34,164.29,6.55745137]
[1730630605322,3.0442,164.3,164.29,6.55745137]
[1730630606818,6.55745137,164.33,164.27,6.55745137]
[1730630608920,3.0445,164.29,164.27,6.55745137]
[1730630609820,3.0445,164.29,164.28,6.55745137]
[1730630612411,3.0445,164.29,164.24,4.0193]
[1730630612412,2.82,164.3,164.27,6.55745137]
[1730630612619,3.0448,164.28,164.27,6.55745137]
[1730630614121,3.0448,164.28,164.2,2.82]
[1730630614122,2.82,164.3,164.25,6.55745137]
[1730630615315,3.045,164.26,164.25,6.55745137]
[1730630617330,3.045,164.26,164.18,5.3793]
[1730630617331,6.55745137,164.28,164.24,6.55745137]
[1730630617625,6.55745137,164.28,164.22,6.55745137]
[1730630618822,6.55745137,164.28,164.24,6.55745137]
[1730630619827,9.37745137,164.3,164.24,6.55745137]
[1730630620219,3.0452,164.25,164.24,6.55745137]
[1730630623833,2.82,164.26,164.22,6.55745137]
[1730630624026,3.0455,164.23,164.22,6.55745137]
[1730630625628,3.0452,164.25,164.22,6.55745137]
[1730630625824,3.0452,164.25,164.24,6.55745137]
[1730630627337,3.0452,164.25,164.23,6.55745137]
[1730630629426,3.0452,164.25,164.24,6.55745137]
[1730630630136,2.82,164.26,164.24,6.55745137]
[1730630630336,6.55745137,164.32,164.25,3.0452]
[1730630630537,2.82,164.31,164.27,6.55745137]
[1730630630842,3.0444,164.3,164.27,6.55745137]
[1730630631334,3.0444,164.29,164.27,6.55745137]
[1730630634747,3.0444,164.29,164.28,6.55745137]
[1730630637448,3.0444,164.3,164.28,6.55745137]
[1730630640651,2.82,164.31,164.28,6.55745137]
[1730630640837,3.0442,164.3,164.28,6.55745137]
[1730630643531,3.0442,164.3,164.28,9.60205137]
[1730630643733,5.8641,164.31,164.28,9.60205137]
[1730630643946,5.8641,164.31,164.3,6.55745137]
[1730630644537,3.0441,164.31,164.3,6.55745137]
[1730630644934,2.82,164.33,164.3,6.55745137]
[1730630645144,3.044,164.32,164.3,6.55745137]
[1730630645647,3.044,164.31,164.3,6.55745137]
[1730630646037,3.044,164.31,164.29,6.55745137]
[1730630647047,3.0446,164.28,164.27,6.55745137]
[1730630649251,3.0448,164.27,164.26,6.55745137]
[1730630650045,3.0446,164.28,164.26,6.55745137]
[1730630650941,3.0448,164.27,164.26,6.55745137]
[1730630663055,2.82,164.29,164.24,6.55745137]
[1730630663355,3.0451,164.26,164.24,6.55745137]
[1730630665054,3.0456,164.23,164.22,6.55745137]
[1730630665247,2.82,164.25,164.21,6.55745137]
[1730630665446,2.82,164.24,164.21,6.55745137]
[1730630665751,3.0459,164.22,164.21,6.55745137]
[1730630665948,3.0459,164.22,164.21,8.0807732]
[1730630666155,9.37745137,164.24,164.19,6.55745137]
[1730630666557,3.0461,164.2,164.19,6.55745137]
[1730630666758,3.0461,164.2,164.19,8.08092428]
[1730630667257,3.0461,164.2,164.19,6.55745137]
[1730630669256,3.046,164.21,164.19,6.55745137]
[1730630672562,3.0461,164.2,164.19,6.55745137]
[1730630673060,3.0464,164.19,164.17,6.55745137]
[1730630675152,2.82,164.22,164.17,6.55745137]
[1730630675353,2.82,164.22,164.19,6.55745137]
[1730630676360,3.0459,164.21,164.19,6.55745137]
[1730630677266,5.8658,164.22,164.19,6.55745137]
[1730630680968,5.8658,164.22,164.18,3.0464]
[1730630684459,2.82,164.22,164.16,42.08669064]
[1730630684668,5.8657,164.22,164.16,42.08669064]
[1730630685163,5.8657,164.22,164.18,3.0464]
[1730630685863,3.0459,164.21,164.18,3.0464]
[1730630689876,5.8657,164.22,164.19,3.0462]
[1730630690181,2.82,164.22,164.16,42.08669064]
[1730630691070,3.046,164.21,164.17,3.0465]
[1730630691265,3.046,164.21,164.16,42.08669064]
[1730630691682,3.046,164.21,164.18,3.0464]
[1730630691981,3.0461,164.2,164.18,3.0464]
[1730630692373,3.0461,164.2,164.17,3.0466]
[1730630693067,3.0461,164.2,164.18,3.0464]
[1730630700485,3.0466,164.18,164.16,42.08669064]
[1730630700675,2.8,164.22,164.11,2.7262]
[1730630700881,2.8,164.22,164.12,1.52392221]
[1730630701183,2.8,164.22,164.13,3.0473]
[1730630701571,2.8,164.22,164.11,2.7262]
[1730630702179,2.8,164.22,164.17,3.0465]
[1730630702180,3.0461,164.21,164.17,3.0465]
[1730630702868,3.0461,164.2,164.17,3.0465]
[1730630706583,2.8,164.22,164.13,1.3735]
[1730630707977,3.0462,164.2,164.13,4.4208]
[1730630708177,2.8,164.22,164.13,4.4208]
[1730630708481,3.0471,164.15,164.12,4.57135826]
[1730630709586,2.82,164.16,164.12,1.52385826]
[1730630710171,3.0471,164.15,164.12,1.52385826]
[1730630710689,3.0471,164.15,164.11,3.0476]
[1730630711076,3.0473,164.14,164.11,3.0476]
[1730630715799,2.82,164.16,164.07,3.9369]
[1730630716097,2.82,164.16,164.08,1.52413979]
[1730630716302,3.047,164.15,164.12,3.0475]
[1730630719698,3.047,164.15,164.1,3.0479]
[1730630720003,3.047,164.15,164.09,1.5241375]
[1730630720196,3.047,164.15,164.08,1.5241375]